fUST/lending_fUST_20250626
["ID","MTS","AMOUNT","RATE_DAILY","PERIOD"]
[367833815,1750939860824,-582.37,0.0002,2]
[367833816,1750939860834,-1888.28,0.0002,2]
[367833817,1750939860843,-462.04,0.0002,2]
[367833818,1750939860853,-460.0,0.0002,2]
[367833819,1750939860863,-460.0,0.0002,2]
[367833820,1750939860873,-471.22,0.0002,2]
[367833821,1750939860883,-517.13,0.0002,2]
[367833822,1750939860892,-1623.0,0.0002,2]
[367833823,1750939860902,-460.0,0.0002,2]
[367833824,1750939860912,-1190.2,0.0002,2]
[367833825,1750939860921,-2144.69,0.0002,2]
[367833826,1750939860931,-782.22,0.0002,2]
[367833827,1750939860941,-460.0,0.0002,2]
[367833828,1750939860950,-556.24212823,0.0002,2]
[367833829,1750939860962,-460.0,0.0002,2]
[367833830,1750939860971,-490.8,0.0002,2]
[367833831,1750939860981,-613.77210429,0.00020065,2]
[367833832,1750939860990,-2550.20025974,0.00020107,2]
[367833833,1750939861000,-318.3418573,0.00020144,2]
[367833834,1750939861010,-2500.0,0.0002018,2]
[367833835,1750939861020,-184.915539,0.00020187,2]
[367833836,1750939861029,-168.0,0.00020249,2]
[367833837,1750939861039,-550.51,0.00020273,2]
[367833838,1750939861049,-460.0,0.00020273,2]
[367833839,1750939861059,-537.32,0.00020273,2]
[367833840,1750939861069,-488.95,0.00020273,2]
[367833841,1750939861078,-460.0,0.00020273,2]
[367833842,1750939861088,-460.0,0.00020273,2]
[367833843,1750939861098,-460.0,0.00020273,2]
[367833844,1750939861107,-602.44,0.00020273,2]
[367833845,1750939861117,-460.0,0.00020273,2]
[367833846,1750939861127,-559.8,0.00020273,2]
[367833847,1750939861136,-460.0,0.00020273,2]
[367833848,1750939861146,-460.0,0.00020273,2]
[367833849,1750939861156,-460.0,0.00020273,2]
[367833850,1750939861166,-460.0,0.00020273,2]
[367833851,1750939861175,-985.93,0.00020273,2]
[367833852,1750939861185,-460.0,0.00020273,2]
[367833853,1750939861195,-3899.1,0.00020273,2]
[367833854,1750939861207,-550.62,0.00020273,2]
[367833855,1750939861217,-3443.2,0.00020273,2]
[367833856,1750939861226,-1393.74,0.00020273,2]
[367833857,1750939861236,-529.46,0.00020273,2]
[367833858,1750939861245,-460.0,0.00020273,2]
[367833859,1750939861254,-667.0,0.00020273,2]
[367833860,1750939861264,-497.91,0.00020273,2]
[367833861,1750939861273,-2163.95,0.00020273,2]
[367833862,1750939861283,-460.0,0.00020273,2]
[367833863,1750939861293,-2411.78,0.00020273,2]
[367833864,1750939861305,-460.0,0.00020273,2]
[367833865,1750939861316,-460.0,0.00020273,2]
[367833866,1750939861327,-498.03,0.00020273,2]
[367833867,1750939861337,-658.65,0.00020273,2]
[367833868,1750939861346,-621.12,0.00020273,2]
[367833869,1750939861356,-686.0,0.00020273,2]
[367833870,1750939861365,-1079.19,0.00020273,2]
[367833871,1750939861375,-460.0,0.00020273,2]
[367833872,1750939861384,-573.8,0.00020273,2]
[367833873,1750939861394,-1517.82,0.00020273,2]
[367833874,1750939861403,-515.04,0.00020273,2]
[367833875,1750939861413,-597.73,0.00020273,2]
[367833876,1750939861423,-858.99,0.00020273,2]
[367833877,1750939861433,-547.52,0.00020273,2]
[367833878,1750939861442,-1475.91,0.00020273,2]
[367833879,1750939861453,-2648.38,0.00020273,2]
[367833880,1750939861463,-838.14,0.00020273,2]
[367833881,1750939861473,-667.42,0.00020273,2]
[367833882,1750939861482,-3198.69,0.00020273,2]
[367833883,1750939861492,-486.06,0.00020273,2]
[367833884,1750939861502,-574.15,0.00020273,2]
[367833885,1750939861511,-460.0,0.00020273,2]
[367833886,1750939861521,-690.59,0.00020273,2]
[367833887,1750939861530,-1708.91,0.00020273,2]
[367833888,1750939861539,-589.76,0.00020273,2]
[367833889,1750939861549,-1679.98,0.00020273,2]
[367833890,1750939861558,-1152.16,0.00020273,2]
[367833891,1750939861569,-525.89611994,0.00020273,2]
[367833892,1750939861583,-1518.28,0.00020273,2]
[367833893,1750939861593,-382.28871113,0.00020273,2]
[367833894,1750939861602,-743.79,0.00020273,2]
[367833895,1750939861611,-483.71,0.00020273,2]
[367833896,1750939861622,-460.0,0.00020273,2]
[367833897,1750939861631,-540.44,0.00020273,2]
[367833898,1750939861640,-1228.47,0.00020273,2]
[367833899,1750939861650,-665.65,0.00020273,2]
[367833900,1750939861660,-460.0,0.00020273,2]
[367833901,1750939861670,-582.37,0.00020273,2]
[367833902,1750939861679,-1888.28,0.00020273,2]
[367833903,1750939861688,-462.04,0.00020273,2]
[367833904,1750939861698,-460.0,0.00020273,2]
[367833905,1750939861711,-460.0,0.00020273,2]
[367833906,1750939861720,-471.22,0.00020273,2]
[367833907,1750939861730,-517.13,0.00020273,2]
[367833908,1750939861739,-1623.0,0.00020273,2]
[367833909,1750939861750,-460.0,0.00020273,2]
[367833910,1750939861760,-1190.2,0.00020273,2]
[367833911,1750939861771,-2144.69,0.00020273,2]
[367833912,1750939861781,-782.22,0.00020273,2]
[367833913,1750939861793,-460.0,0.00020273,2]
[367833914,1750939861803,-460.0,0.00020273,2]
[367833915,1750939861815,-490.8,0.00020273,2]
[367833916,1750939861825,-2504.79287362,0.00020327,2]
[367833917,1750939861835,-250.0,0.00020375,2]
[367833918,1750939861844,-168.0,0.00020377,2]
[367833919,1750939861854,-2550.20025974,0.00020383,3]
[367833920,1750939861864,-5000.0,0.00020533,2]
[367833921,1750939861874,-6858.70700737,0.00020547,2]
[367833922,1750939861883,-550.51,0.00020547,2]
[367833923,1750939861893,-460.0,0.00020547,2]
[367833924,1750939861903,-500.0,0.00020547,14]
[367833925,1750939861913,-537.32,0.00020547,2]
[367833926,1750939861923,-488.95,0.00020547,2]
[367833927,1750939861932,-460.0,0.00020547,2]
[367833928,1750939861941,-460.0,0.00020547,2]
[367833929,1750939861950,-460.0,0.00020547,2]
[367833930,1750939861962,-460.0,0.00020547,2]
[367833931,1750939861972,-559.8,0.00020547,2]
[367833932,1750939861982,-167.56020435,0.00020547,2]
[367833933,1750939861992,-460.0,0.00020547,2]
[367833934,1750939862001,-236.35,0.00020547,2]
[367833935,1750939862011,-460.0,0.00020547,2]
[367833936,1750939862020,-985.93,0.00020547,2]
[367833937,1750939862030,-506.24604461,0.00020547,2]
[367833938,1750939862040,-3899.1,0.00020547,2]
[367833939,1750939862050,-550.62,0.00020547,2]
[367833940,1750939862059,-3443.2,0.00020547,2]
[367833941,1750939862069,-1393.74,0.00020547,2]
[367833942,1750939862079,-529.46,0.00020547,2]
[367833943,1750939862089,-460.0,0.00020547,2]
[367833944,1750939862099,-519.60109617,0.00020547,2]
[367833945,1750939862109,-667.0,0.00020547,2]
[367833946,1750939862119,-497.91,0.00020547,2]
[367833947,1750939862128,-2163.95,0.00020547,2]
[367833948,1750939862138,-460.0,0.00020547,2]
[367833949,1750939862147,-2411.78,0.00020547,2]
[367833950,1750939862157,-460.0,0.00020547,2]
[367833951,1750939862167,-460.0,0.00020547,2]
[367833952,1750939862178,-498.03,0.00020547,2]
[367833953,1750939862188,-658.65,0.00020547,2]
[367833954,1750939862198,-621.12,0.00020547,2]
[367833955,1750939862213,-686.0,0.00020547,2]
[367833956,1750939862222,-1079.19,0.00020547,2]
[367833957,1750939862233,-460.0,0.00020547,2]
[367833958,1750939862243,-573.8,0.00020547,2]
[367833959,1750939862252,-1517.82,0.00020547,2]
[367833960,1750939862263,-515.04,0.00020547,2]
[367833961,1750939862273,-597.73,0.00020547,2]
[367833962,1750939862283,-858.99,0.00020547,2]
[367833963,1750939862293,-547.52,0.00020547,2]
[367833964,1750939862302,-1475.91,0.00020547,2]
[367833965,1750939862313,-2648.38,0.00020547,2]
[367833966,1750939862323,-838.14,0.00020547,2]
[367833967,1750939862334,-667.42,0.00020547,2]
[367833968,1750939862344,-3198.69,0.00020547,2]
[367833969,1750939862354,-486.06,0.00020547,2]
[367833970,1750939862364,-574.15,0.00020547,2]
[367833971,1750939862374,-460.0,0.00020547,2]
[367833972,1750939862383,-690.59,0.00020547,2]
[367833973,1750939862394,-1708.91,0.00020547,2]
[367833974,1750939862404,-589.76,0.00020547,2]
[367833975,1750939862413,-1679.98,0.00020547,2]
[367833976,1750939862423,-1152.16,0.00020547,2]
[367833977,1750939862432,-1518.28,0.00020547,2]
[367833978,1750939862442,-743.79,0.00020547,2]
[367833979,1750939862452,-483.71,0.00020547,2]
[367833980,1750939862463,-460.0,0.00020547,2]
[367833981,1750939862473,-540.44,0.00020547,2]
[367833982,1750939862482,-1228.47,0.00020547,2]
[367833983,1750939862492,-665.65,0.00020547,2]
[367833984,1750939862502,-460.0,0.00020547,2]
[367833985,1750939862511,-582.37,0.00020547,2]
[367833986,1750939862521,-1888.28,0.00020547,2]
[367833987,1750939862530,-462.04,0.00020547,2]
[367833988,1750939862539,-460.0,0.00020547,2]
[367833989,1750939862548,-155.0,0.00020547,2]
[367833990,1750939862557,-460.0,0.00020547,2]
[367833991,1750939862568,-471.22,0.00020547,2]
[367833992,1750939862580,-517.13,0.00020547,2]
[367833993,1750939862590,-1623.0,0.00020547,2]
[367833994,1750939862600,-460.0,0.00020547,2]
[367833995,1750939862609,-1190.2,0.00020547,2]
[367833996,1750939862620,-2144.69,0.00020547,2]
[367833997,1750939862630,-782.22,0.00020547,2]
[367833998,1750939862640,-460.0,0.00020547,2]
[367833999,1750939862650,-568.8232412,0.00020547,2]
[367834000,1750939862661,-490.8,0.00020547,2]
[367834001,1750939862671,-2709.32465373,0.00020572,2]
[367834002,1750939862681,-168.0,0.00020589,2]
[367834003,1750939862690,-3507.37,0.000206,2]
[367834004,1750939862700,-151.0,0.000206,4]
[367834005,1750939862712,-1367.295302,0.00020629,4]
[367834006,1750939862722,-366.0585355,0.00020658,2]
[367834007,1750939862731,-732.117071,0.00020658,2]
[367834008,1750939862741,-366.0585355,0.00020658,2]
[367834009,1750939862750,-2550.20025974,0.00020659,3]
[367834010,1750939862760,-1057.77139467,0.00020728,2]
[367834011,1750939862770,-215.0738,0.00020806,2]
[367834012,1750939862779,-33606.01203106,0.00020821,2]
[367834013,1750939862789,-324.70928451,0.00020821,2]
[367834014,1750939862799,-550.51,0.00020821,2]
[367834015,1750939862808,-460.0,0.00020821,2]
[367834016,1750939862860,-537.32,0.00020821,2]
[367834017,1750939862870,-488.95,0.00020821,2]
[367834018,1750939862879,-460.0,0.00020821,2]
[367834019,1750939862888,-460.0,0.00020821,2]
[367834020,1750939862898,-460.0,0.00020821,2]
[367834021,1750939862907,-460.0,0.00020821,2]
[367834022,1750939862917,-559.8,0.00020821,2]
[367834023,1750939862927,-402.77,0.00020821,2]
[367834024,1750939862936,-460.0,0.00020821,2]
[367834025,1750939862945,-985.93,0.00020821,2]
[367834026,1750939862956,-3899.1,0.00020821,2]
[367834027,1750939862965,-550.62,0.00020821,2]
[367834028,1750939862975,-3443.2,0.00020821,2]
[367834029,1750939862984,-1393.74,0.00020821,2]
[367834030,1750939862993,-529.46,0.00020821,2]
[367834031,1750939863005,-460.0,0.00020821,2]
[367834032,1750939863014,-667.0,0.00020821,2]
[367834033,1750939863024,-497.91,0.00020821,2]
[367834034,1750939863034,-2163.95,0.00020821,2]
[367834035,1750939863043,-460.0,0.00020821,2]
[367834036,1750939863053,-2411.78,0.00020821,2]
[367834037,1750939863062,-460.0,0.00020821,2]
[367834038,1750939863072,-460.0,0.00020821,2]
[367834039,1750939863082,-498.03,0.00020821,2]
[367834040,1750939863092,-658.65,0.00020821,2]
[367834041,1750939863102,-621.12,0.00020821,2]
[367834042,1750939863111,-686.0,0.00020821,2]
[367834043,1750939863121,-1079.19,0.00020821,2]
[367834044,1750939863131,-371.62993064,0.00020821,2]
[367834045,1750939863141,-573.8,0.00020821,2]
[367834046,1750939863151,-1517.82,0.00020821,2]
[367834047,1750939863160,-515.04,0.00020821,2]
[367834048,1750939863169,-597.73,0.00020821,2]
[367834049,1750939863179,-858.99,0.00020821,2]
[367834050,1750939863188,-547.52,0.00020821,2]
[367834051,1750939863198,-1475.91,0.00020821,2]
[367834052,1750939863209,-2648.38,0.00020821,2]
[367834053,1750939863219,-838.14,0.00020821,2]
[367834054,1750939863229,-667.42,0.00020821,2]
[367834055,1750939863239,-3198.69,0.00020821,2]
[367834056,1750939863250,-486.06,0.00020821,2]
[367834057,1750939863260,-574.15,0.00020821,2]
[367834058,1750939863269,-460.0,0.00020821,2]
[367834059,1750939863279,-690.59,0.00020821,2]
[367834060,1750939863289,-1708.91,0.00020821,2]
[367834061,1750939863298,-589.76,0.00020821,2]
[367834062,1750939863307,-1679.98,0.00020821,2]
[367834063,1750939863317,-1152.16,0.00020821,2]
[367834064,1750939863327,-1518.28,0.00020821,2]
[367834065,1750939863337,-743.79,0.00020821,2]
[367834066,1750939863347,-483.71,0.00020821,2]
[367834067,1750939863357,-460.0,0.00020821,2]
[367834068,1750939863367,-540.44,0.00020821,2]
[367834069,1750939863376,-1228.47,0.00020821,2]
[367834070,1750939863387,-665.65,0.00020821,2]
[367834071,1750939863397,-460.0,0.00020821,2]
[367834072,1750939863406,-582.37,0.00020821,2]
[367834073,1750939863416,-1888.28,0.00020821,2]
[367834074,1750939863425,-462.04,0.00020821,2]
[367834075,1750939863437,-460.0,0.00020821,2]
[367834076,1750939863446,-460.0,0.00020821,2]
[367834077,1750939863456,-471.22,0.00020821,2]
[367834078,1750939863465,-517.13,0.00020821,2]
[367834079,1750939863475,-1623.0,0.00020821,2]
[367834080,1750939863485,-477.7,0.00020821,2]
[367834081,1750939863495,-1190.2,0.00020821,2]
[367834082,1750939863504,-2144.69,0.00020821,2]
[367834083,1750939863514,-782.22,0.00020821,2]
[367834084,1750939863524,-460.0,0.00020821,2]
[367834085,1750939863534,-490.8,0.00020821,2]
[367834086,1750939863544,-214.33134213,0.00020822,3]
[367834087,1750939863554,-185.0,0.00020841,2]
[367834088,1750939863563,-200.0,0.0002085,2]
[367834089,1750939863573,-168.0,0.00020867,2]
[367834090,1750939863584,-2550.20025974,0.00020934,4]
[367834091,1750939863595,-500.0,0.00020958,15]
[367834092,1750939863605,-6544.25534241,0.00020995,2]
[367834093,1750939863614,-1085.0,0.00021,2]
[367834094,1750939863624,-1085.0,0.00021,2]
[367834095,1750939863633,-1085.0,0.00021,2]
[367834096,1750939863642,-1085.0,0.00021,2]
[367834097,1750939863651,-1085.0,0.00021,2]
[367834098,1750939863661,-1085.0,0.00021,2]
[367834099,1750939863671,-1085.0,0.00021,2]
[367834100,1750939863680,-1085.0,0.00021,2]
[367834101,1750939863690,-1085.0,0.00021,2]
[367834102,1750939863699,-1085.0,0.00021,2]
[367834103,1750939863709,-3000.0,0.00021,2]
[367834104,1750939863719,-160.0,0.00021,2]
[367834105,1750939863729,-3000.0,0.0002101,2]
[367834106,1750939863739,-3000.0,0.0002102,2]
[367834107,1750939863749,-3000.0,0.0002103,2]
[367834108,1750939863759,-168.0,0.00021034,2]
[367834109,1750939863768,-500.0,0.00021035,2]
[367834110,1750939863777,-500.0,0.00021035,2]
[367834111,1750939863787,-3000.0,0.0002104,2]
[367834112,1750939863796,-202.4526486,0.0002104,2]
[367834113,1750939863805,-153.0,0.0002104,2]
[367834114,1750939863814,-306.0,0.0002104,2]
[367834115,1750939863824,-306.0,0.0002104,2]
[367834116,1750939863833,-153.0,0.0002104,2]
[367834117,1750939863843,-153.0,0.0002104,2]
[367834118,1750939863853,-2200.0,0.00021048,2]
[367834119,1750939863862,-3000.0,0.0002105,2]
[367834120,1750939863872,-3000.0,0.0002106,2]
[367834121,1750939863882,-3000.0,0.0002107,2]
[367834122,1750939863892,-808.0,0.00021071,2]
[367834123,1750939863901,-3000.0,0.0002108,2]
[367834124,1750939863910,-5000.0,0.00021081,2]
[367834125,1750939863920,-168.0,0.00021082,2]
[367834126,1750939863929,-3000.0,0.0002109,2]
[367834127,1750939863938,-1441.7,0.00021095,2]
[367834128,1750939863948,-550.51,0.00021095,2]
[367834129,1750939863958,-460.0,0.00021095,2]
[367834130,1750939863967,-537.32,0.00021095,2]
[367834131,1750939863976,-488.95,0.00021095,2]
[367834132,1750939863985,-460.0,0.00021095,2]
[367834133,1750939863994,-460.0,0.00021095,2]
[367834134,1750939864004,-460.0,0.00021095,2]
[367834135,1750939864014,-460.0,0.00021095,2]
[367834136,1750939864024,-559.8,0.00021095,2]
[367834137,1750939864033,-460.0,0.00021095,2]
[367834138,1750939864043,-985.93,0.00021095,2]
[367834139,1750939864054,-3899.1,0.00021095,2]
[367834140,1750939864064,-550.62,0.00021095,2]
[367834141,1750939864074,-3443.2,0.00021095,2]
[367834142,1750939864084,-1393.74,0.00021095,2]
[367834143,1750939864094,-529.46,0.00021095,2]
[367834144,1750939864105,-460.0,0.00021095,2]
[367834145,1750939864115,-667.0,0.00021095,2]
[367834146,1750939864125,-497.91,0.00021095,2]
[367834147,1750939864135,-2163.95,0.00021095,2]
[367834148,1750939864145,-460.0,0.00021095,2]
[367834149,1750939864155,-2411.78,0.00021095,2]
[367834150,1750939864165,-460.0,0.00021095,2]
[367834151,1750939864175,-460.0,0.00021095,2]
[367834152,1750939864185,-498.03,0.00021095,2]
[367834153,1750939864195,-658.65,0.00021095,2]
[367834154,1750939864205,-621.12,0.00021095,2]
[367834155,1750939864215,-686.0,0.00021095,2]
[367834156,1750939864225,-1079.19,0.00021095,2]
[367834157,1750939864236,-573.8,0.00021095,2]
[367834158,1750939864246,-1517.82,0.00021095,2]
[367834159,1750939864256,-515.04,0.00021095,2]
[367834160,1750939864266,-597.73,0.00021095,2]
[367834161,1750939864276,-858.99,0.00021095,2]
[367834162,1750939864286,-547.52,0.00021095,2]
[367834163,1750939864297,-1475.91,0.00021095,2]
[367834164,1750939864307,-2648.38,0.00021095,2]
[367834165,1750939864317,-838.14,0.00021095,2]
[367834166,1750939864327,-667.42,0.00021095,2]
[367834167,1750939864336,-3198.69,0.00021095,2]
[367834168,1750939864346,-486.06,0.00021095,2]
[367834169,1750939864356,-574.15,0.00021095,2]
[367834170,1750939864365,-460.0,0.00021095,2]
[367834171,1750939864377,-690.59,0.00021095,2]
[367834172,1750939864387,-1708.91,0.00021095,2]
[367834173,1750939864397,-589.76,0.00021095,2]
[367834174,1750939864407,-1679.98,0.00021095,2]
[367834175,1750939864416,-1152.16,0.00021095,2]
[367834176,1750939864426,-1518.28,0.00021095,2]
[367834177,1750939864436,-743.79,0.00021095,2]
[367834178,1750939864445,-483.71,0.00021095,2]
[367834179,1750939864456,-460.0,0.00021095,2]
[367834180,1750939864466,-540.44,0.00021095,2]
[367834181,1750939864476,-1228.47,0.00021095,2]
[367834182,1750939864486,-665.65,0.00021095,2]
[367834183,1750939864496,-460.0,0.00021095,2]
[367834184,1750939864507,-582.37,0.00021095,2]
[367834185,1750939864517,-1888.28,0.00021095,2]
[367834186,1750939864527,-462.04,0.00021095,2]
[367834187,1750939864538,-460.0,0.00021095,2]
[367834188,1750939864547,-460.0,0.00021095,2]
[367834189,1750939864559,-471.22,0.00021095,2]
[367834190,1750939864570,-1623.0,0.00021095,2]
[367834191,1750939864581,-517.13,0.00021095,2]
[367834192,1750939864594,-1190.2,0.00021095,2]
[367834193,1750939864605,-2144.69,0.00021095,2]
[367834194,1750939864615,-782.22,0.00021095,2]
[367834195,1750939864626,-460.0,0.00021095,2]
[367834196,1750939864637,-490.8,0.00021095,2]
[367834197,1750939864647,-3000.0,0.000211,2]
[367834198,1750939864657,-151.0,0.000211,3]
[367834199,1750939864668,-3000.0,0.0002111,2]
[367834200,1750939864678,-153.44956,0.0002111,7]
[367834201,1750939864688,-3000.0,0.0002112,2]
[367834202,1750939864699,-3000.0,0.0002113,2]
[367834203,1750939864711,-4491.357526,0.0002114,2]
[367834204,1750939864720,-168.0,0.00021194,2]
[367834205,1750939864730,-2550.20025974,0.0002121,4]
[367834206,1750939864740,-168.0,0.00021224,2]
[367834207,1750939864751,-168.0,0.00021264,2]
[367834208,1750939864762,-500.0,0.00021271,2]
[367834209,1750939864772,-500.0,0.00021271,2]
[367834210,1750939864784,-500.0,0.00021271,2]
[367834211,1750939864794,-500.0,0.00021271,2]
[367834212,1750939864805,-500.0,0.00021271,2]
[367834213,1750939864816,-432.95481487,0.00021271,2]
[367834214,1750939864827,-500.0,0.00021271,2]
[367834215,1750939864837,-500.0,0.00021271,2]
[367834216,1750939864847,-500.0,0.00021271,2]
[367834217,1750939864857,-500.0,0.00021271,2]
[367834218,1750939864866,-500.0,0.00021271,2]
[367834219,1750939864877,-500.0,0.00021271,2]
[367834220,1750939864887,-500.0,0.00021271,2]
[367834221,1750939864898,-500.0,0.00021279,2]
[367834222,1750939864908,-500.0,0.00021279,2]
[367834223,1750939864918,-302.07678004,0.00021279,2]
[367834224,1750939864929,-500.0,0.00021279,2]
[367834225,1750939864939,-333.4424912,0.00021279,2]
[367834226,1750939864949,-200.2532582,0.00021279,2]
[367834227,1750939864961,-500.0,0.00021279,2]
[367834228,1750939864971,-500.0,0.00021279,2]
[367834229,1750939864982,-500.0,0.00021279,2]
[367834230,1750939864992,-500.0,0.00021279,2]
[367834231,1750939865001,-500.18674294,0.00021279,2]
[367834232,1750939865011,-500.52155406,0.00021279,2]
[367834233,1750939865021,-500.0,0.00021279,2]
[367834234,1750939865031,-500.0,0.00021279,2]
[367834235,1750939865041,-500.0,0.00021279,2]
[367834236,1750939865051,-302.574,0.00021289,2]
[367834237,1750939865061,-500.0,0.00021307,2]
[367834238,1750939865071,-500.0,0.00021361,2]
[367834239,1750939865080,-500.0,0.00021361,2]
[367834240,1750939865090,-1441.7,0.00021369,2]
[367834241,1750939865099,-550.51,0.00021369,2]
[367834242,1750939865109,-460.0,0.00021369,2]
[367834243,1750939865117,-500.0,0.00021369,16]
[367834244,1750939865126,-537.32,0.00021369,2]
[367834245,1750939865136,-488.95,0.00021369,2]
[367834246,1750939865145,-270.30219787,0.00021369,2]
[367834247,1750939865155,-460.0,0.00021369,2]
[367834248,1750939865165,-460.0,0.00021369,2]
[367834249,1750939865175,-460.0,0.00021369,2]
[367834250,1750939865185,-559.8,0.00021369,2]
[367834251,1750939865195,-460.0,0.00021369,2]
[367834252,1750939865204,-985.93,0.00021369,2]
[367834253,1750939865215,-3899.1,0.00021369,2]
[367834254,1750939865224,-550.62,0.00021369,2]
[367834255,1750939865234,-3443.2,0.00021369,2]
[367834256,1750939865244,-1393.74,0.00021369,2]
[367834257,1750939865253,-529.46,0.00021369,2]
[367834258,1750939865263,-460.0,0.00021369,2]
[367834259,1750939865273,-667.0,0.00021369,2]
[367834260,1750939865282,-497.91,0.00021369,2]
[367834261,1750939865292,-2163.95,0.00021369,2]
[367834262,1750939865300,-460.0,0.00021369,2]
[367834263,1750939865310,-2411.78,0.00021369,2]
[367834264,1750939865319,-460.0,0.00021369,2]
[367834265,1750939865329,-460.0,0.00021369,2]
[367834266,1750939865339,-498.03,0.00021369,2]
[367834267,1750939865348,-658.65,0.00021369,2]
[367834268,1750939865359,-621.12,0.00021369,2]
[367834269,1750939865368,-686.0,0.00021369,2]
[367834270,1750939865379,-1079.19,0.00021369,2]
[367834271,1750939865388,-573.8,0.00021369,2]
[367834272,1750939865398,-1517.82,0.00021369,2]
[367834273,1750939865408,-515.04,0.00021369,2]
[367834274,1750939865417,-597.73,0.00021369,2]
[367834275,1750939865427,-858.99,0.00021369,2]
[367834276,1750939865436,-547.52,0.00021369,2]
[367834277,1750939865448,-1475.91,0.00021369,2]
[367834278,1750939865459,-2648.38,0.00021369,2]
[367834279,1750939865469,-838.14,0.00021369,2]
[367834280,1750939865478,-667.42,0.00021369,2]
[367834281,1750939865488,-3198.69,0.00021369,2]
[367834282,1750939865498,-486.06,0.00021369,2]
[367834283,1750939865507,-574.15,0.00021369,2]
[367834284,1750939865517,-460.0,0.00021369,2]
[367834285,1750939865526,-690.59,0.00021369,2]
[367834286,1750939865536,-1708.91,0.00021369,2]
[367834287,1750939865546,-589.76,0.00021369,2]
[367834288,1750939865555,-1679.98,0.00021369,2]
[367834289,1750939865565,-1152.16,0.00021369,2]
[367834290,1750939865575,-1518.28,0.00021369,2]
[367834291,1750939865584,-743.79,0.00021369,2]
[367834292,1750939865597,-483.71,0.00021369,2]
[367834293,1750939865607,-460.0,0.00021369,2]
[367834294,1750939865617,-540.44,0.00021369,2]
[367834295,1750939865627,-1228.47,0.00021369,2]
[367834296,1750939865637,-665.65,0.00021369,2]
[367834297,1750939865647,-460.0,0.00021369,2]
[367834298,1750939865656,-582.37,0.00021369,2]
[367834299,1750939865666,-1888.28,0.00021369,2]
[367834300,1750939865677,-462.04,0.00021369,2]
[367834301,1750939865686,-460.0,0.00021369,2]
[367834302,1750939865696,-475.92934072,0.00021369,2]
[367834303,1750939865707,-471.22,0.00021369,2]
[367834304,1750939865717,-517.13,0.00021369,2]
[367834305,1750939865727,-1623.0,0.00021369,2]
[367834306,1750939865737,-1190.2,0.00021369,2]
[367834307,1750939865748,-2144.69,0.00021369,2]
[367834308,1750939865759,-782.22,0.00021369,2]
[367834309,1750939865769,-460.0,0.00021369,2]
[367834310,1750939865778,-490.8,0.00021369,2]
[367834311,1750939865788,-168.0,0.00021382,2]
[367834312,1750939865799,-500.0,0.00021418,2]
[367834313,1750939865809,-168.0,0.0002144,2]
[367834314,1750939865819,-823.0,0.00021454,2]